bitfinex/quotes_BTCUSD_20250410
["timestamp","ask_amount","ask_price","bid_price","bid_amount"]
[1744262169003,0.0021688,82089.0,82088.0,0.32457679]
[1744262169448,0.0001688,82089.0,82088.0,0.32457679]
[1744262170675,0.0001688,82089.0,82088.0,0.27837679]
[1744262170828,0.0001688,82089.0,82088.0,0.27937679]
[1744262171080,0.0001688,82089.0,82088.0,0.26719479]
[1744262171287,0.0001688,82089.0,82088.0,0.27937679]
[1744262171689,0.00487816,82089.0,82088.0,0.27937679]
[1744262171891,0.0001688,82089.0,82088.0,0.27937679]
[1744262181775,0.0001688,82089.0,82088.0,0.02355479]
[1744262181982,0.0001688,82089.0,82088.0,0.27937679]
[1744262189690,0.0001688,82089.0,82088.0,0.02355479]
[1744262189853,0.0001688,82089.0,82088.0,0.26719479]
[1744262190048,0.0001688,82089.0,82088.0,0.24464]
[1744262190695,0.0001688,82089.0,82088.0,0.256822]
[1744262192171,0.0733488,82089.0,82088.0,0.24464]
[1744262193317,0.0001688,82089.0,82088.0,0.24464]
[1744262194397,0.0001688,82089.0,82088.0,0.001]
[1744262194550,0.0733488,82089.0,82088.0,0.24464]
[1744262195568,0.0001688,82089.0,82088.0,0.24464]
[1744262196965,0.0001688,82089.0,82088.0,0.256822]
[1744262198983,0.0001688,82089.0,82088.0,0.001]
[1744262199318,0.0733488,82089.0,82088.0,0.24464]
[1744262199521,0.0733488,82089.0,82088.0,0.256822]
[1744262201372,0.0001688,82089.0,82088.0,0.256822]
[1744262202336,0.0001688,82089.0,82088.0,0.27939521]
[1744262207552,0.0001688,82089.0,82088.0,0.32629521]
[1744262208576,0.0001688,82089.0,82088.0,0.46753521]
[1744262208803,0.0001688,82089.0,82088.0,0.46853521]
[1744262209215,0.0001688,82089.0,82088.0,0.27939521]
[1744262209968,0.0001688,82089.0,82088.0,0.32679521]
[1744262210156,0.0001688,82089.0,82088.0,0.37369521]
[1744262210353,0.0001688,82089.0,82088.0,0.41130052]
[1744262211186,0.0001688,82089.0,82088.0,0.55354052]
[1744262211522,7e-07,82097.0,82096.0,0.01218]
[1744262211728,7e-07,82097.0,82096.0,1.81954401]
[1744262211931,7e-07,82097.0,82096.0,1.83968166]
[1744262212160,7e-07,82097.0,82096.0,1.98192166]
[1744262212324,7e-07,82097.0,82096.0,1.83968166]
[1744262212735,7e-07,82097.0,82096.0,1.86136784]
[1744262212935,7e-07,82097.0,82096.0,1.82376253]
[1744262213193,7e-07,82097.0,82096.0,1.68152253]
[1744262213399,7e-07,82097.0,82096.0,1.82376253]
[1744262216725,7e-07,82097.0,82096.0,1.72938253]
[1744262219040,7e-07,82097.0,82096.0,1.82528253]
[1744262219240,7e-07,82097.0,82096.0,1.77918253]
[1744262219483,7e-07,82097.0,82096.0,1.72938253]
[1744262223786,7e-07,82097.0,82096.0,2.06938253]
[1744262223991,7e-07,82097.0,82096.0,2.11918253]
[1744262226774,7e-07,82097.0,82096.0,2.28583635]
[1744262227806,7e-07,82099.0,82098.0,0.595791]
[1744262228007,7e-07,82099.0,82098.0,0.76244482]
[1744262228161,4e-07,82103.0,82102.0,0.301878]
[1744262228360,4e-07,82103.0,82102.0,0.42243182]
[1744262228969,4e-07,82103.0,82102.0,0.4534392]
[1744262229370,4e-07,82103.0,82102.0,0.28678538]
[1744262229798,4e-07,82103.0,82102.0,0.03100738]
[1744262230192,4e-07,82103.0,82102.0,0.42894538]
[1744262230793,4e-07,82103.0,82102.0,0.42051121]
[1744262232629,4e-07,82103.0,82102.0,0.40833221]
[1744262232821,4e-07,82103.0,82102.0,0.42051121]
[1744262243283,4e-07,82103.0,82102.0,0.16473321]
[1744262243489,0.3755954,82103.0,82102.0,0.02257321]
[1744262243706,0.49614922,82103.0,82102.0,0.02257321]
[1744262243899,0.56601219,82103.0,82102.0,0.02257321]
[1744262244508,0.328911,82098.0,82097.0,0.02257321]
[1744262244704,0.34345185,82098.0,82097.0,0.02257321]
[1744262244885,0.35040784,82098.0,82097.0,0.02257321]
[1744262246805,0.328914,82097.0,82096.0,0.05505232]
[1744262247214,0.33587676,82097.0,82096.0,0.05505232]
[1744262250168,0.32369676,82097.0,82096.0,0.05505232]
[1744262250527,0.08008276,82097.0,82096.0,0.33342253]
[1744262254148,0.08008276,82097.0,82096.0,0.07762553]
[1744262254336,0.32369676,82097.0,82096.0,0.07762553]
[1744262254690,0.32369676,82097.0,82096.0,0.05505232]
[1744262256540,0.33587676,82097.0,82096.0,0.05505232]
[1744262259305,0.33587676,82097.0,82096.0,0.07762553]
[1744262260602,0.32369676,82097.0,82096.0,0.07762553]
[1744262261704,0.33587676,82097.0,82096.0,0.07762553]
[1744262264007,0.328914,82097.0,82096.0,0.07762553]
[1744262271578,0.07312,82097.0,82096.0,0.07762553]
[1744262272271,0.316734,82097.0,82096.0,0.07762553]
[1744262272464,0.328914,82097.0,82096.0,0.07762553]
[1744262274682,0.07312,82097.0,82096.0,0.07762553]
[1744262275142,0.07312,82098.0,82097.0,0.255794]
[1744262275605,0.07312,82098.0,82097.0,0.27836721]
[1744262276240,4e-07,82103.0,82102.0,0.255778]
[1744262276684,4e-07,82103.0,82102.0,0.27835121]
[1744262279194,0.0731204,82103.0,82102.0,0.02257321]
[1744262279666,0.32355181,82103.0,82102.0,0.02257321]
[1744262280128,0.33573081,82103.0,82102.0,0.02257321]
[1744262280356,0.47082548,82103.0,82102.0,0.02257321]
[1744262280819,0.90502548,82103.0,82102.0,0.02257321]
[1744262281072,0.328914,82097.0,82083.0,0.012182]
[1744262281312,0.46400867,82097.0,82089.0,0.243637]
[1744262281561,0.47083987,82097.0,82087.0,0.243643]
[1744262281799,0.47083987,82097.0,82088.0,0.243639]
[1744262282021,0.47083987,82097.0,82089.0,0.022564]
[1744262283042,0.47083987,82097.0,82087.0,0.255825]
[1744262284500,0.47083987,82097.0,82089.0,0.243636]
[1744262284647,0.87083987,82097.0,82084.0,0.243652]
[1744262284845,0.87083987,82097.0,82085.0,0.243649]
[1744262285048,0.87083987,82097.0,82084.0,0.243652]
[1744262285256,0.87083987,82097.0,82081.0,0.00042532]
[1744262285477,0.32896,82082.0,82081.0,0.00042532]
[1744262285674,0.32896,82082.0,82081.0,0.02298554]
[1744262285835,0.07312,82082.0,82081.0,0.02298554]
[1744262286036,0.07312,82082.0,82081.0,0.27882954]
[1744262286318,0.07312,82082.0,82081.0,0.02298554]
[1744262286450,0.07312,82082.0,82081.0,0.26664654]
[1744262286646,0.07312,82082.0,82081.0,0.27882954]
[1744262287505,0.07312,82085.0,82083.0,0.243654]
[1744262287929,0.07312,82085.0,82084.0,0.02256022]
[1744262288826,0.316769,82085.0,82084.0,0.02256022]
[1744262289141,0.07312,82085.0,82084.0,0.26621222]
[1744262289534,0.07312,82085.0,82084.0,0.26611098]
[1744262289741,0.07312,82085.0,82084.0,0.277387]
[1744262289939,0.07312,82085.0,82084.0,0.289569]
[1744262290140,0.07312,82094.0,82090.0,0.243633]
[1744262290346,0.07312,82092.0,82090.0,0.243633]
[1744262290769,0.316749,82092.0,82090.0,0.243633]
[1744262291090,0.316749,82092.0,82088.0,0.25582]
[1744262291091,0.07312,82090.0,82088.0,0.25582]
[1744262291234,0.07312,82090.0,82089.0,0.243638]
[1744262291644,0.07312,82090.0,82088.0,0.243638]
[1744262292029,0.07312,82091.0,82088.0,0.243638]
[1744262293072,0.316752,82091.0,82088.0,0.243638]
[1744262293768,0.07312,82092.0,82091.0,0.012181]
[1744262294172,0.07312,82092.0,82091.0,0.255813]
[1744262294852,0.07312,82094.0,82092.0,0.243626]
[1744262295079,0.07312,82094.0,82092.0,0.255807]
[1744262295519,0.07312,82094.0,82092.0,0.26707684]
[1744262295702,0.07312,82094.0,82092.0,0.25489584]
[1744262295835,0.07312,82094.0,82093.0,0.255807]
[1744262296043,0.07312,82100.0,82098.0,0.24361]
[1744262296816,4e-07,82103.0,82102.0,0.255778]
[1744262298506,0.0731204,82103.0,82102.0,0.255778]
[1744262298858,0.0731204,82103.0,82102.0,0.26703675]
[1744262299413,4e-07,82103.0,82102.0,0.26703675]
[1744262300339,0.07997585,82103.0,82102.0,0.26703675]
[1744262301325,4e-07,82103.0,82102.0,0.26703675]
[1744262301763,4e-07,82103.0,82102.0,0.28954278]
[1744262301937,0.2435964,82103.0,82102.0,0.03376478]
[1744262302474,0.38525987,82103.0,82102.0,0.03376478]
[1744262302928,0.52035454,82103.0,82102.0,0.01125875]
[1744262303156,0.255791,82098.0,82097.0,0.02250603]
[1744262303364,0.328911,82098.0,82097.0,0.02250603]
[1744262303586,0.243631,82092.0,82088.0,0.26614503]
[1744262303797,0.243638,82089.0,82088.0,0.02250603]
[1744262304031,0.316747,82093.0,82090.0,0.243635]
[1744262304718,0.316747,82093.0,82091.0,0.02250603]
[1744262305163,0.243629,82092.0,82091.0,0.02250603]
[1744262305387,0.316746,82093.0,82091.0,0.243632]
[1744262305619,0.07312,82093.0,82091.0,0.243631]
[1744262306295,0.07312,82093.0,82092.0,0.26615156]
[1744262306526,0.07312,82097.0,82093.0,0.255807]
[1744262306767,0.07312,82095.0,82094.0,0.243622]
[1744262307004,0.07312,82095.0,82094.0,0.27832556]
[1744262307464,0.07312,82095.0,82094.0,0.28958564]
[1744262307743,0.07312,82095.0,82094.0,0.27740564]
[1744262307963,0.31674,82095.0,82094.0,0.03378264]
[1744262308428,0.328921,82095.0,82094.0,0.02252256]
[1744262311556,0.33583966,82095.0,82094.0,0.02252256]
[1744262314197,0.33583966,82095.0,82092.0,0.02252256]
[1744262314673,0.33583966,82095.0,82093.0,0.02252256]
[1744262315384,0.316743,82094.0,82091.0,0.243631]
[1744262315562,0.07312,82092.0,82091.0,0.243631]
[1744262315858,0.08003952,82092.0,82091.0,0.243631]
[1744262316488,0.08003952,82092.0,82091.0,0.26616884]
[1744262318015,0.60083419,82092.0,82091.0,0.02253784]
[1744262318252,0.90424419,82092.0,82091.0,0.02253784]
[1744262318488,0.38920085,82082.0,82070.0,0.02253784]
[1744262318707,0.50975467,82082.0,82070.0,0.02253784]
[1744262318931,0.50975467,82082.0,82071.0,0.02253784]
[1744262319380,0.50975467,82082.0,82069.0,0.0003372]
[1744262319856,0.84975467,82082.0,82069.0,0.0003372]
[1744262320277,1.26415467,82082.0,82069.0,0.0003372]
[1744262320451,1.51375467,82082.0,82069.0,0.0003372]
[1744262321476,1.52292819,82082.0,82069.0,0.0003372]
[1744262321693,1.52492819,82082.0,82069.0,0.0003372]
[1744262322296,1.92492819,82082.0,82069.0,0.0003372]
[1744262323063,2.06800819,82082.0,82069.0,0.0003372]
[1744262323262,1.99488819,82082.0,82069.0,0.0003372]
[1744262329458,2.11532078,82082.0,82069.0,0.0003372]
[1744262329957,1.99488819,82082.0,82069.0,0.0003372]
[1744262331437,2.06800819,82082.0,82069.0,0.0003372]
[1744262332245,2.07300819,82082.0,82081.0,3.2e-07]
[1744262333174,2.07100819,82082.0,82081.0,3.2e-07]
[1744262333374,2.07000819,82082.0,82081.0,3.2e-07]
[1744262333550,2.20244078,82082.0,82081.0,3.2e-07]
[1744262333751,2.07700819,82082.0,82081.0,3.2e-07]
[1744262333957,2.06500819,82082.0,82081.0,3.2e-07]
[1744262334165,2.07400819,82082.0,82081.0,3.2e-07]
[1744262334371,2.08300819,82082.0,82081.0,3.2e-07]
[1744262335350,2.08800819,82082.0,82081.0,3.2e-07]
[1744262335537,2.08300819,82082.0,82081.0,3.2e-07]
[1744262335666,2.20344078,82082.0,82081.0,3.2e-07]
[1744262336537,2.08300819,82082.0,82081.0,3.2e-07]
[1744262338934,0.329054,82052.0,82051.0,0.0003374]
[1744262339141,0.329054,82052.0,82026.0,0.000337]
[1744262339142,0.68362585,82042.0,82026.0,0.000337]
[1744262339431,0.80417967,82042.0,82026.0,0.000337]
[1744262339557,0.329085,82042.0,82041.0,0.00412784]
[1744262339968,0.316897,82042.0,82041.0,0.00412784]
[1744262340173,0.07312,82043.0,82041.0,0.00412784]
[1744262340754,0.07312,82043.0,82042.0,0.243777]
[1744262340955,0.07312,82043.0,82041.0,0.24790684]
[1744262341170,0.07312,82047.0,82043.0,0.012188]
[1744262341449,0.243757,82049.0,82044.0,0.243771]
[1744262341604,0.243757,82049.0,82044.0,0.255959]
[1744262341809,0.243762,82048.0,82045.0,0.243768]
[1744262342632,0.243757,82049.0,82044.0,0.012188]
[1744262342794,0.24376,82048.0,82045.0,0.243768]
[1744262342998,0.243763,82047.0,82044.0,0.255959]
[1744262343197,0.07312,82058.0,82055.0,0.243738]
[1744262343562,0.443729,82059.0,82056.0,0.0939]
[1744262343766,0.243733,82057.0,82056.0,0.0454]
[1744262343942,0.255916,82058.0,82056.0,0.0454]
[1744262344348,0.08515788,82064.0,82058.0,0.24373]
[1744262344546,0.243716,82063.0,82060.0,0.243721]
[1744262344891,0.07312,82064.0,82060.0,0.012186]
[1744262345017,0.07312,82064.0,82061.0,0.255907]
[1744262345213,0.316832,82064.0,82060.0,0.255909]
[1744262345518,0.243718,82062.0,82059.0,0.243721]
[1744262345923,0.002,82063.0,82059.0,0.243727]
[1744262346127,0.002,82063.0,82059.0,0.012186]
[1744262346339,0.002,82063.0,82060.0,0.243722]
[1744262346467,0.002,82063.0,82061.0,0.243721]
[1744262346685,0.246715,82063.0,82060.0,0.243718]
[1744262347037,0.248715,82063.0,82060.0,0.243718]
[1744262347232,0.005,82063.0,82062.0,0.243718]
[1744262347415,0.002,82063.0,82061.0,0.24372]
[1744262347611,0.006,82063.0,82061.0,0.243721]
[1744262347791,0.006,82063.0,82060.0,0.012186]
[1744262348002,0.002,82063.0,82060.0,0.243723]
[1744262348203,0.245717,82063.0,82060.0,0.243723]
[1744262348563,0.002,82063.0,82062.0,0.243718]
[1744262348844,0.243708,82066.0,82063.0,0.243714]
[1744262349138,0.243718,82062.0,82057.0,0.012186]
[1744262349352,0.243718,82062.0,82059.0,0.243721]
[1744262349714,0.004,82063.0,82062.0,0.255903]
[1744262349929,0.003,82063.0,82062.0,0.255903]
[1744262350316,0.003,82063.0,82062.0,0.25833988]
[1744262350775,0.243693,82071.0,82068.0,0.243699]
[1744262351266,0.243688,82072.0,82068.0,0.255884]
[1744262351916,0.255881,82069.0,82068.0,0.00012784]
[1744262352355,0.243682,82074.0,82070.0,0.012184]
[1744262352570,0.085303,82077.0,82070.0,0.255875]
[1744262352731,0.085303,82077.0,82068.0,0.00012784]
[1744262352732,0.243697,82069.0,82068.0,0.00012784]
[1744262353189,0.255881,82069.0,82068.0,0.00012784]
[1744262353589,0.243686,82073.0,82068.0,0.00012784]
[1744262353896,0.243697,82069.0,82068.0,0.00012784]
[1744262354093,0.329001,82069.0,82068.0,0.00012784]
[1744262355352,0.316817,82069.0,82068.0,0.00012784]
[1744262355902,0.330001,82069.0,82068.0,0.00012784]
[1744262356304,0.32837537,82069.0,82068.0,0.00012784]
[1744262357185,0.32937537,82069.0,82068.0,0.00012784]
[1744262357796,0.07512,82069.0,82068.0,0.24382784]
[1744262358038,0.07512,82069.0,82068.0,0.00012784]
[1744262358674,0.002,82069.0,82068.0,0.00012784]
[1744262360542,0.002,82069.0,82068.0,0.24382784]
[1744262360808,0.002,82069.0,82068.0,0.25601284]
[1744262362474,0.002,82069.0,82068.0,0.00012784]
[1744262362678,0.331001,82069.0,82068.0,0.00012784]
[1744262366066,0.376301,82069.0,82068.0,0.00012784]
[1744262370405,0.776301,82069.0,82068.0,0.00012784]
[1744262371316,0.731001,82069.0,82068.0,0.00012784]
[1744262371686,0.331001,82069.0,82068.0,0.00012784]
[1744262371880,0.318817,82069.0,82068.0,0.00012784]
[1744262372100,0.07512,82069.0,82068.0,0.25601284]
[1744262373336,0.002,82069.0,82068.0,0.25601284]
[1744262374405,0.002,82069.0,82068.0,0.24382784]
[1744262374610,0.331001,82069.0,82068.0,0.00012784]
[1744262381556,0.731001,82069.0,82068.0,0.00012784]
[1744262383651,0.331001,82069.0,82068.0,0.00012784]
[1744262383806,0.002,82069.0,82068.0,0.00012784]
[1744262384001,0.318817,82069.0,82068.0,0.00012784]
[1744262384231,0.07512,82069.0,82068.0,0.25601284]
[1744262384726,0.318817,82069.0,82068.0,0.00012784]
[1744262384929,0.07512,82069.0,82068.0,0.00012784]
[1744262385336,0.002,82069.0,82068.0,0.00012784]
[1744262385544,0.07512,82069.0,82068.0,0.00012784]
[1744262386025,0.318817,82069.0,82068.0,0.00012784]
[1744262386367,0.331001,82069.0,82068.0,0.00012784]
[1744262393631,0.318817,82069.0,82068.0,0.00012784]
[1744262394137,0.07512,82069.0,82068.0,0.25601284]
[1744262395082,0.002,82069.0,82068.0,0.25601284]
[1744262396002,0.001,82069.0,82068.0,0.25601284]
[1744262396398,0.316799,82075.0,82073.0,0.243684]
[1744262397736,0.317799,82075.0,82073.0,0.243684]
[1744262398552,0.07312,82073.0,82072.0,0.243687]
[1744262398910,0.316805,82073.0,82071.0,0.243688]
[1744262399114,0.316812,82071.0,82068.0,0.25601184]
[1744262399339,0.07312,82071.0,82069.0,0.243696]
[1744262399543,0.07312,82071.0,82069.0,0.243697]
[1744262400547,0.07312,82071.0,82070.0,0.243692]
[1744262400922,0.316811,82071.0,82069.0,0.243697]
[1744262401753,0.07312,82071.0,82070.0,0.243694]
[1744262401957,0.07312,82071.0,82069.0,0.243697]
[1744262402183,0.07312,82071.0,82070.0,0.243694]
[1744262402741,0.07312,82072.0,82070.0,0.243694]
[1744262402960,0.07312,82072.0,82071.0,0.243691]
[1744262403289,0.2,82075.0,82074.0,0.255866]
[1744262403492,0.01216433,82088.0,82081.0,0.255844]
[1744262403642,0.1420888,82093.0,82081.0,0.25828035]
[1744262403643,0.243631,82092.0,82081.0,0.25828035]
[1744262403847,0.243635,82090.0,82081.0,0.255844]
[1744262404233,0.07312,82089.0,82081.0,0.255844]
[1744262404435,0.31676,82089.0,82081.0,0.27839335]
[1744262405342,0.0011688,82082.0,82081.0,0.27839335]
[1744262406419,0.0011688,82082.0,82081.0,0.255844]
[1744262407629,0.0011688,82082.0,82077.0,0.243673]
[1744262407630,0.07312,82078.0,82077.0,0.243673]
[1744262407997,0.31679,82078.0,82072.0,0.243685]
[1744262408197,0.07312,82078.0,82075.0,0.243677]
[1744262408620,0.07312,82078.0,82077.0,0.243673]
[1744262408848,0.07312,82079.0,82077.0,0.243673]
[1744262409813,0.07312,82079.0,82078.0,0.24367]
[1744262410018,0.07312,82079.0,82078.0,0.255853]
[1744262410221,0.07312,82079.0,82078.0,0.24367]
[1744262411029,0.07312,82080.0,82078.0,0.24367]
[1744262411383,0.07312,82080.0,82079.0,0.243667]
[1744262411674,0.07312,82080.0,82078.0,0.243668]
[1744262411877,0.07312,82080.0,82079.0,0.243667]
[1744262412033,0.07312,82081.0,82079.0,0.243667]
[1744262412456,0.316782,82081.0,82079.0,0.243667]
[1744262413035,0.07312,82081.0,82079.0,0.243667]
[1744262413458,0.07312,82081.0,82078.0,0.243668]
[1744262413839,0.07312,82080.0,82079.0,0.243665]
[1744262414455,0.07312,82080.0,82079.0,0.255848]
[1744262415137,0.0732888,82082.0,82080.0,0.243662]
[1744262415770,0.3169488,82082.0,82079.0,0.255848]
[1744262416128,0.0732888,82082.0,82080.0,0.243663]
[1744262417058,0.3169478,82082.0,82080.0,0.243663]
[1744262417278,0.07312,82081.0,82080.0,0.255846]
[1744262417483,0.07312,82081.0,82080.0,0.243663]
[1744262418174,0.0732888,82082.0,82079.0,0.243667]
[1744262418321,0.3169478,82082.0,82079.0,0.243667]
[1744262418524,0.07312,82075.0,82071.0,0.012184]
[1744262418916,0.07312,82075.0,82072.0,0.243686]
[1744262419122,0.07312,82075.0,82073.0,0.243684]
[1744262419322,0.07312,82075.0,82069.0,0.243696]
[1744262419323,0.316812,82071.0,82067.0,0.2437]
[1744262419548,0.07312,82071.0,82068.0,0.24382784]
[1744262419720,0.07312,82071.0,82069.0,0.243697]
[1744262420332,0.07312,82071.0,82070.0,0.243694]
[1744262420538,0.07312,82071.0,82068.0,0.25601284]
[1744262420539,0.07312,82071.0,82069.0,0.25588]
[1744262420773,0.07312,82071.0,82070.0,0.012184]
[1744262421189,0.07312,82071.0,82070.0,0.243694]
[1744262421586,0.243688,82072.0,82068.0,0.25601284]
[1744262421587,0.07312,82069.0,82068.0,0.00012784]
[1744262421861,0.07312,82069.0,82068.0,0.24382784]
[1744262422039,0.07312,82069.0,82068.0,0.25601284]
[1744262422891,0.07312,82072.0,82071.0,0.243691]
[1744262423865,0.07312,82072.0,82070.0,0.255877]
[1744262424422,0.07312,82072.0,82071.0,0.243691]
[1744262425574,0.07312,82073.0,82071.0,0.243691]
[1744262426710,0.07312,82073.0,82072.0,0.243688]
[1744262426997,0.07312,82073.0,82071.0,0.243691]
[1744262427793,0.316805,82073.0,82069.0,0.255878]
[1744262428122,0.07312,82073.0,82071.0,0.243689]
[1744262428873,0.255881,82069.0,82068.0,0.00012784]
[1744262429039,0.44955482,82069.0,82068.0,0.00012784]
[1744262429248,0.46409567,82069.0,82068.0,0.00012784]
[1744262429456,0.56019567,82069.0,82068.0,0.00012784]
[1744262430322,0.29903138,82069.0,82068.0,0.00012784]
[1744262430528,0.07312,82069.0,82068.0,0.00012784]
[1744262430741,0.085304,82069.0,82068.0,0.00012784]
[1744262431361,0.285304,82069.0,82068.0,0.00012784]
[1744262432050,0.29724019,82069.0,82068.0,0.00012784]
[1744262432605,0.69724019,82069.0,82068.0,0.00012784]
[1744262433373,0.29724019,82069.0,82068.0,0.00012784]
[1744262434940,0.54093719,82069.0,82068.0,0.00012784]
[1744262437725,0.28505619,82069.0,82068.0,0.25601284]
[1744262438385,0.08505619,82069.0,82068.0,0.25601284]
[1744262444430,0.08505619,82069.0,82068.0,0.00012784]
[1744262444746,0.08505619,82069.0,82068.0,0.24382784]
[1744262444991,0.08505619,82069.0,82068.0,0.00012784]
[1744262445192,0.34093719,82069.0,82068.0,0.00012784]
[1744262447775,0.50799101,82069.0,82068.0,0.00012784]
[1744262448430,0.70799101,82069.0,82068.0,0.00012784]
[1744262449229,0.72253186,82069.0,82068.0,0.00012784]
[1744262449948,0.72353186,82069.0,82068.0,0.00012784]
[1744262450148,1.47893186,82069.0,82068.0,0.00012784]
[1744262450586,1.92673186,82069.0,82068.0,0.00012784]
[1744262451297,1.92573186,82069.0,82068.0,0.00012784]
[1744262451683,2.06861186,82069.0,82068.0,0.00012784]
[1744262452126,2.06661186,82069.0,82068.0,0.00012784]
[1744262452322,2.06761186,82069.0,82068.0,0.00012784]
[1744262452499,2.06861186,82069.0,82068.0,0.00012784]
[1744262452901,1.92773186,82069.0,82068.0,0.00012784]
[1744262453201,2.06961186,82069.0,82068.0,0.00012784]
[1744262459238,2.19004445,82069.0,82068.0,0.00012784]
[1744262459436,2.06961186,82069.0,82068.0,0.00012784]
[1744262460241,2.06961186,82069.0,82068.0,8.4e-07]
[1744262461065,2.19781186,82069.0,82068.0,8.4e-07]
[1744262461287,2.06961186,82069.0,82068.0,8.4e-07]
[1744262462352,1.92773186,82069.0,82068.0,8.4e-07]
[1744262462614,2.06961186,82069.0,82068.0,8.4e-07]
[1744262463497,2.19004445,82069.0,82068.0,8.4e-07]
[1744262463698,2.06961186,82069.0,82068.0,8.4e-07]
[1744262471038,1.92773186,82069.0,82068.0,8.4e-07]
[1744262471242,2.06957186,82069.0,82068.0,8.4e-07]
[1744262472347,2.06957186,82069.0,82036.0,0.0003376]
[1744262472348,0.255965,82042.0,82036.0,0.0003376]
[1744262472721,0.81392508,82042.0,82041.0,0.00442639]
[1744262473010,1.21392508,82042.0,82041.0,0.00442639]
[1744262473759,1.22584927,82042.0,82041.0,0.00442639]
[1744262474426,1.42584927,82042.0,82041.0,0.00442639]
[1744262474626,1.43796023,82042.0,82041.0,0.00442639]
[1744262474827,1.89736023,82042.0,82041.0,0.00442639]
[1744262475232,1.89936023,82042.0,82041.0,0.00442639]
[1744262479247,1.89736023,82042.0,82041.0,0.00442639]
[1744262479401,1.89936023,82042.0,82041.0,0.00442639]
[1744262479602,2.01979282,82042.0,82041.0,3.9e-07]
[1744262479827,1.91036023,82042.0,82041.0,3.9e-07]
[1744262480028,1.91036023,82042.0,82036.0,0.0003376]
[1744262480029,0.669101,82037.0,82036.0,0.00029799]
[1744262480257,0.80419567,82037.0,82036.0,0.00029799]
[1744262480551,0.8136618,82037.0,82036.0,0.00029799]
[1744262480911,1.2136618,82037.0,82036.0,0.00029799]
[1744262481111,1.2176618,82037.0,82036.0,0.00029799]
[1744262481366,1.3595418,82037.0,82036.0,0.00029799]
[1744262481553,1.3625418,82037.0,82036.0,0.00029799]
[1744262482488,1.5625418,82037.0,82036.0,0.00029799]
[1744262482899,1.4206618,82037.0,82036.0,0.00029799]
[1744262483169,1.5625418,82037.0,82036.0,0.00029799]
[1744262485254,1.9769418,82037.0,82036.0,0.00029799]
[1744262488442,2.09737439,82037.0,82036.0,0.00029799]
[1744262488658,0.34,82024.0,82023.0,0.0003374]
[1744262488823,0.68371985,82012.0,82008.0,0.0003374]
[1744262489030,0.80427367,82012.0,82008.0,0.0003374]
[1744262489229,0.81372053,82012.0,82008.0,0.0003374]
[1744262489437,1.41372053,82012.0,82008.0,0.0003374]
[1744262490160,1.15808715,82012.0,82011.0,0.247869]
[1744262490306,1.15808715,82012.0,82011.0,0.295269]
[1744262490959,1.15808715,82012.0,82011.0,0.0514]
[1744262491389,1.15808715,82012.0,82011.0,0.295269]
[1744262491538,0.28599248,82012.0,82011.0,0.353762]
[1744262491862,0.28299248,82012.0,82011.0,0.353762]
[1744262492262,0.28499248,82012.0,82011.0,0.353762]
[1744262492439,0.08499248,82012.0,82011.0,0.353762]
[1744262492643,0.08299248,82012.0,82011.0,0.353762]
[1744262493466,0.28299248,82012.0,82011.0,0.353762]
[1744262495252,0.08299248,82012.0,82011.0,0.353762]
[1744262499371,0.00987248,82012.0,82011.0,0.353762]
[1744262499687,0.00042562,82012.0,82011.0,0.353762]
[1744262505024,0.31749162,82012.0,82011.0,0.0503]
[1744262505275,0.32529644,82012.0,82011.0,0.004]
[1744262505475,0.08143044,82012.0,82011.0,0.004]
[1744262505910,0.08143044,82012.0,82011.0,0.016193]
[1744262506047,0.08143044,82012.0,82011.0,0.260062]
[1744262506261,0.00042562,82012.0,82011.0,0.260062]
[1744262506472,0.00042562,82012.0,82011.0,0.355262]
[1744262509969,0.00042562,82012.0,82011.0,0.47581582]
[1744262510436,0.00042562,82012.0,82011.0,0.497062]
[1744262510858,0.00042562,82012.0,82011.0,0.355262]
[1744262511036,0.00042562,82012.0,82011.0,0.497062]
[1744262517688,0.06862562,82025.0,82024.0,0.243831]
[1744262517883,0.0756222,82025.0,82024.0,0.24387341]
[1744262521283,0.0756222,82025.0,82024.0,0.25606441]
[1744262521494,0.06405124,82027.0,82026.0,0.256016]
[1744262521695,0.2,82028.0,82027.0,0.256013]
[1744262521872,0.2,82028.0,82027.0,0.302013]
[1744262522430,0.4144,82037.0,82035.0,0.012189]
[1744262522431,0.0732,82036.0,82035.0,0.012189]
[1744262522632,0.0732,82036.0,82035.0,0.255987]
[1744262523783,0.0732,82043.0,82042.0,0.255965]
[1744262524754,0.0732,82047.0,82046.0,0.255953]
[1744262525745,0.0732,82050.0,82049.0,0.243756]
[1744262525944,0.0732,82050.0,82049.0,0.255943]
[1744262526974,0.0732,82050.0,82049.0,0.25598541]
[1744262527719,0.0752,82050.0,82049.0,0.25598541]
[1744262527932,0.002,82050.0,82049.0,0.25598541]
[1744262528081,0.006,82050.0,82049.0,0.25598541]
[1744262528282,0.006,82050.0,82049.0,0.25842275]
[1744262528468,0.002,82050.0,82049.0,0.25598541]
[1744262528676,0.002,82050.0,82049.0,0.42717627]
[1744262528880,0.0001688,82054.0,82053.0,0.255931]
[1744262529084,0.0001688,82054.0,82053.0,0.258368]
[1744262529760,0.0001688,82054.0,82053.0,0.255931]
[1744262530651,0.0001688,82054.0,82053.0,0.256931]
[1744262537290,0.0001688,82054.0,82053.0,0.25936809]
[1744262537524,0.0001688,82054.0,82053.0,0.37992191]
[1744262537795,0.0001688,82054.0,82053.0,0.42268482]
[1744262537796,8e-07,82054.0,82053.0,0.42268482]
[1744262539135,8e-07,82054.0,82053.0,0.42168482]
[1744262539507,8e-07,82054.0,82053.0,0.42268482]
[1744262539668,8e-07,82054.0,82053.0,0.42168482]
[1744262540007,8e-07,82054.0,82053.0,0.42268482]
[1744262542651,8e-07,82054.0,82053.0,0.76268482]
[1744262542825,8e-07,82054.0,82053.0,0.80828482]
[1744262544018,8e-07,82054.0,82053.0,0.94992482]
[1744262544635,8e-07,82054.0,82053.0,0.95492482]
[1744262545092,8e-07,82054.0,82053.0,0.99225207]
[1744262546064,8e-07,82054.0,82053.0,0.99125207]
[1744262546683,8e-07,82054.0,82053.0,0.99225207]
[1744262547251,0.0001688,82082.0,82081.0,0.255844]
[1744262547452,0.0001688,82082.0,82081.0,0.39992028]